fUSD/lending_fUSD_20250804
["ID","MTS","AMOUNT","RATE_DAILY","PERIOD"]
[377230426,1754305894449,-400.0,0.00038904,2]
[377230427,1754305894459,-507.13385696,0.00038904,2]
[377230428,1754305894469,-151.0,0.00038904,14]
[377230429,1754305894478,-400.0,0.00038904,2]
[377230430,1754305894488,-439.11,0.00038904,2]
[377230431,1754305894497,-500.8905906,0.00038904,2]
[377230432,1754305894507,-400.0,0.00038904,2]
[377230433,1754305894517,-400.0,0.00038904,2]
[377230434,1754305894526,-241.127134,0.00038904,14]
[377230435,1754305894536,-400.0,0.00038904,2]
[377230436,1754305894546,-400.0,0.00038904,2]
[377230437,1754305894556,-400.0,0.00038904,2]
[377230438,1754305894566,-1119.27,0.00038904,2]
[377230439,1754305894576,-884.11,0.00038904,2]
[377230440,1754305894586,-465.18,0.00038904,2]
[377230441,1754305894597,-400.0,0.00038904,2]
[377230442,1754305894607,-400.0,0.00038904,2]
[377230443,1754305894617,-1124.7,0.00038904,2]
[377230444,1754305894627,-953.16,0.00038904,2]
[377230445,1754305894638,-400.0,0.00038904,2]
[377230446,1754305894647,-1903.44,0.00038904,2]
[377230447,1754305894657,-449.54,0.00038904,2]
[377230448,1754305894667,-977.67,0.00038904,2]
[377230449,1754305894677,-400.0,0.00038904,2]
[377230450,1754305894688,-400.0,0.00038904,2]
[377230451,1754305894698,-400.0,0.00038904,2]
[377230452,1754305894971,-400.0,0.00038904,2]
[377230453,1754305894984,-2558.85,0.00038904,2]
[377230454,1754305894993,-480.36,0.00038904,2]
[377230455,1754305895002,-400.0,0.00038904,2]
[377230456,1754305895011,-400.0,0.00038904,2]
[377230457,1754305895021,-2716.06,0.00038904,2]
[377230458,1754305895030,-400.0,0.00038904,2]
[377230459,1754305895039,-400.0,0.00038904,2]
[377230460,1754305895049,-400.0,0.00038904,2]
[377230461,1754305895059,-400.0,0.00038904,2]
[377230462,1754305895068,-1399.58,0.00038904,2]
[377230463,1754305895078,-1797.0,0.00038904,2]
[377230464,1754305895087,-151.0,0.00038904,14]
[377230465,1754305895097,-400.0,0.00038904,2]
[377230466,1754305895106,-459.32,0.00038904,2]
[377230467,1754305895116,-2022.23,0.00038904,2]
[377230468,1754305895125,-333.72,0.00038904,2]
[377230469,1754305895135,-4159.78,0.00038904,2]
[377230470,1754305895144,-687.73,0.00038904,2]
[377230471,1754305895153,-151.0,0.00038904,14]
[377230472,1754305895163,-452.62,0.00038904,2]
[377230473,1754305895172,-400.0,0.00038904,2]
[377230474,1754305895182,-1027.4,0.00038904,2]
[377230475,1754305895191,-400.0,0.00038904,2]
[377230476,1754305895201,-743.48,0.00038904,2]
[377230477,1754305895211,-487.04166187,0.00038904,2]
[377230478,1754305895220,-407.24422829,0.00038904,2]
[377230479,1754305895230,-500.0,0.00038904,2]
[377230480,1754305895240,-400.0,0.00038904,2]
[377230481,1754305895249,-400.0,0.00038904,2]
[377230482,1754305895258,-1103.2,0.00038904,2]
[377230483,1754305895267,-400.0,0.00038904,2]
[377230484,1754305895277,-400.0,0.00038904,2]
[377230485,1754305895286,-2146.76,0.00038904,2]
[377230486,1754305895296,-1197.92,0.00038904,2]
[377230487,1754305895305,-400.0,0.00038904,2]
[377230488,1754305895315,-697.9,0.00038904,2]
[377230489,1754305895324,-700.27,0.00038904,2]
[377230490,1754305895333,-400.0,0.00038904,2]
[377230491,1754305895343,-400.0,0.00038904,2]
[377230492,1754305895352,-442.05,0.00038904,2]
[377230493,1754305895361,-400.0,0.00038904,2]
[377230494,1754305895370,-400.0,0.00038904,2]
[377230495,1754305895379,-400.0,0.00038904,2]
[377230496,1754305895389,-400.0,0.00038904,2]
[377230497,1754305895399,-400.0,0.00038904,2]
[377230498,1754305895408,-763.21,0.00038904,2]
[377230499,1754305895417,-664.53,0.00038904,2]
[377230500,1754305895426,-862.35,0.00038904,2]
[377230501,1754305895435,-624.93,0.00038904,2]
[377230502,1754305895444,-151.0,0.00038904,14]
[377230503,1754305895454,-272.77290126,0.00038904,2]
[377230504,1754305895463,-793.15,0.00038904,2]
[377230505,1754305895473,-639.19,0.00038904,2]
[377230506,1754305895482,-400.0,0.00038904,2]
[377230507,1754305895492,-605.24,0.00038904,2]
[377230508,1754305895501,-2472.68,0.00038904,2]
[377230509,1754305895511,-400.0,0.00038904,2]
[377230510,1754305895521,-151.0,0.00038904,14]
[377230511,1754305895531,-1841.68,0.00038904,2]
[377230512,1754305895541,-1091.38,0.00038904,2]
[377230513,1754305895550,-400.0,0.00038904,2]
[377230514,1754305895560,-400.0,0.00038904,2]
[377230515,1754305895569,-400.0,0.00038904,2]
[377230516,1754305895578,-400.0,0.00038904,2]
[377230517,1754305895588,-569.15,0.00038904,2]
[377230518,1754305895598,-482.87,0.00038904,2]
[377230519,1754305895607,-400.0,0.00038904,2]
[377230520,1754305895616,-400.0,0.00038904,2]
[377230521,1754305895626,-1179.1,0.00038904,2]
[377230522,1754305895635,-400.0,0.00038904,2]
[377230523,1754305895645,-400.0,0.00038904,2]
[377230524,1754305895654,-400.0,0.00038904,2]
[377230525,1754305895663,-400.0,0.00038904,2]
[377230526,1754305895673,-1320.13,0.00038904,2]
[377230527,1754305895682,-400.0,0.00038904,2]
[377230528,1754305895692,-1348.28,0.00038904,2]
[377230529,1754305895701,-908.97,0.00038904,2]
[377230530,1754305895712,-1144.27,0.00038904,2]
[377230531,1754305895721,-1407.62,0.00038904,2]
[377230532,1754305895731,-448.56,0.00038904,2]
[377230533,1754305895741,-400.0,0.00038904,2]
[377230534,1754305895750,-853.71,0.00038904,2]
[377230535,1754305895759,-609.84,0.00038904,2]
[377230536,1754305895769,-600.02,0.00038904,2]
[377230537,1754305895779,-400.0,0.00038904,2]
[377230538,1754305895788,-1274.99,0.00038904,2]
[377230539,1754305895798,-464.41918699,0.00038904,2]
[377230540,1754305895807,-400.0,0.00038904,2]
[377230541,1754305895817,-400.0,0.00038904,2]
[377230542,1754305895826,-2778.93,0.00038904,2]
[377230543,1754305895836,-800.16,0.00038904,2]
[377230544,1754305895845,-402.29249039,0.00038904,2]
[377230545,1754305895854,-151.0,0.00038904,14]
[377230546,1754305895864,-787.7,0.00038904,2]
[377230547,1754305895873,-500.6,0.00038904,2]
[377230548,1754305895883,-499.94,0.00038904,2]
[377230549,1754305895892,-192.08143153,0.00038904,2]
[377230550,1754305895905,-627.38,0.00038904,2]
[377230551,1754305895915,-151.0,0.00038904,14]
[377230552,1754305895925,-400.0,0.00038904,2]
[377230553,1754305895934,-461.32,0.00038904,2]
[377230554,1754305895944,-400.0,0.00038904,2]
[377230555,1754305895954,-1107.49,0.00038904,2]
[377230556,1754305895964,-1182.54,0.00038904,2]
[377230557,1754305895974,-400.0,0.00038904,2]
[377230558,1754305895983,-400.0,0.00038904,2]
[377230559,1754305895993,-400.0,0.00038904,2]
[377230560,1754305896003,-2273.69,0.00038904,2]
[377230561,1754305896013,-151.0,0.00038904,14]
[377230562,1754305896023,-400.0,0.00038904,2]
[377230563,1754305896032,-400.0,0.00038904,2]
[377230564,1754305896042,-400.0,0.00038904,2]
[377230565,1754305896051,-790.39,0.00038904,2]
[377230566,1754305896060,-400.0,0.00038904,2]
[377230567,1754305896069,-400.0,0.00038904,2]
[377230568,1754305896079,-400.0,0.00038904,2]
[377230569,1754305896088,-400.0,0.00038904,2]
[377230570,1754305896098,-400.0,0.00038904,2]
[377230571,1754305896107,-400.0,0.00038904,2]
[377230572,1754305896117,-746.2,0.00038904,2]
[377230573,1754305896126,-2544.09,0.00038904,2]
[377230574,1754305896135,-513.6,0.00038904,2]
[377230575,1754305896144,-400.0,0.00038904,2]
[377230576,1754305896153,-1066.14,0.00038904,2]
[377230577,1754305896163,-445.82,0.00038904,2]
[377230578,1754305896172,-856.62,0.00038904,2]
[377230579,1754305896182,-1070.42,0.00038904,2]
[377230580,1754305896191,-548.68,0.00038904,2]
[377230581,1754305896201,-400.0,0.00038904,2]
[377230582,1754305896210,-413.36,0.00038904,2]
[377230583,1754305896220,-1968.28,0.00038904,2]
[377230584,1754305896230,-155.52615924,0.00038904,2]
[377230585,1754305896239,-400.0,0.00038904,2]
[377230586,1754305896248,-460.79,0.00038904,2]
[377230587,1754305896258,-865.19,0.00038904,2]
[377230588,1754305896267,-151.0,0.00038904,14]
[377230589,1754305896276,-1119.16,0.00038904,2]
[377230590,1754305896286,-400.0,0.00038904,2]
[377230591,1754305896295,-400.0,0.00038904,2]
[377230592,1754305896304,-1422.91,0.00038904,2]
[377230593,1754305896314,-400.0,0.00038904,2]
[377230594,1754305896324,-400.0,0.00038904,2]
[377230595,1754305896334,-400.0,0.00038904,2]
[377230596,1754305896343,-1354.16,0.00038904,2]
[377230597,1754305896353,-400.0,0.00038904,2]
[377230598,1754305896363,-1000.0,0.00038904,2]
[377230599,1754305896372,-404.79559742,0.00038904,2]
[377230600,1754305896382,-400.0,0.00038904,2]
[377230601,1754305896392,-400.0,0.00038904,2]
[377230602,1754305896402,-400.0,0.00038904,2]
[377230603,1754305896411,-400.0,0.00038904,2]
[377230604,1754305896422,-400.0,0.00038904,2]
[377230605,1754305896431,-400.0,0.00038904,2]
[377230606,1754305896441,-400.0,0.00038904,2]
[377230607,1754305896451,-400.0,0.00038904,2]
[377230608,1754305896460,-403.00416021,0.00038904,2]
[377230609,1754305896470,-400.0,0.00038904,2]
[377230610,1754305896479,-625.15,0.00038904,2]
[377230611,1754305896489,-400.0,0.00038904,2]
[377230612,1754305896498,-1598.25,0.00038904,2]
[377230613,1754305896507,-400.0,0.00038904,2]
[377230614,1754305896518,-400.0,0.00038904,2]
[377230615,1754305896528,-1192.41,0.00038904,2]
[377230616,1754305896537,-400.0,0.00038904,2]
[377230617,1754305896546,-404.62217313,0.00038904,2]
[377230618,1754305896556,-668.58,0.00038904,2]
[377230619,1754305896570,-575.89,0.00038904,2]
[377230620,1754305896588,-1116.34,0.00038904,2]
[377230621,1754305896605,-400.0,0.00038904,2]
[377230622,1754305896623,-400.0,0.00038904,2]
[377230623,1754305896639,-1214.62,0.00038904,2]
[377230624,1754305896657,-1137.04,0.00038904,2]
[377230625,1754305896674,-400.0,0.00038904,2]
[377230626,1754305896693,-400.0,0.00038904,2]
[377230627,1754305896712,-400.0,0.00038904,2]
[377230628,1754305896728,-400.0,0.00038904,2]
[377230629,1754305896748,-400.0,0.00038904,2]
[377230630,1754305896764,-400.0,0.00038904,2]
[377230631,1754305896778,-1590.64,0.00038904,2]
[377230632,1754305896795,-400.0,0.00038904,2]
[377230633,1754305896808,-400.0,0.00038904,2]
[377230634,1754305896825,-400.0,0.00038904,2]
[377230635,1754305896841,-400.0,0.00038904,2]
[377230636,1754305896856,-400.0,0.00038904,2]
[377230637,1754305896871,-1069.29,0.00038904,2]
[377230638,1754305896886,-1138.57,0.00038904,2]
[377230639,1754305896903,-400.0,0.00038904,2]
[377230640,1754305896917,-400.0,0.00038904,2]
[377230641,1754305896934,-403.08787191,0.00038904,2]
[377230642,1754305896948,-400.0,0.00038904,2]
[377230643,1754305896964,-400.0,0.00038904,2]
[377230644,1754305896980,-400.0,0.00038904,2]
[377230645,1754305896996,-400.0,0.00038904,2]
[377230646,1754305897011,-1131.33,0.00038904,2]
[377230647,1754305897026,-150.8246923,0.00038904,2]
[377230648,1754305897040,-1171.06,0.00038904,2]
[377230649,1754305897054,-1384.7,0.00038904,2]
[377230650,1754305897069,-894.77,0.00038904,2]
[377230651,1754305897083,-638.844483,0.00038904,2]
[377230652,1754305897098,-599.89,0.00038904,2]
[377230653,1754305897112,-2355.79,0.00038904,2]
[377230654,1754305897128,-773.66,0.00038904,2]
[377230655,1754305897143,-1091.28,0.00038904,2]
[377230656,1754305897157,-400.0,0.00038904,2]
[377230657,1754305897172,-400.0,0.00038904,2]
[377230658,1754305897189,-400.0,0.00038904,2]
[377230659,1754305897203,-2327.34,0.00038904,2]
[377230660,1754305897218,-151.0,0.00038904,14]
[377230661,1754305897233,-501.83,0.00038904,2]
[377230662,1754305897249,-781.86,0.00038904,2]
[377230663,1754305897263,-1915.51,0.00038904,2]
[377230664,1754305897279,-538.38,0.00038904,2]
[377230665,1754305897293,-400.0,0.00038904,2]
[377230666,1754305897309,-166.58863185,0.00038904,2]
[377230667,1754305897324,-892.62,0.00038904,2]
[377230668,1754305897339,-829.75,0.00038904,2]
[377230669,1754305897353,-1000.94,0.00038904,2]
[377230670,1754305897368,-400.0,0.00038904,2]
[377230671,1754305897383,-1098.02,0.00038904,2]
[377230672,1754305897398,-1453.05,0.00038904,2]
[377230673,1754305897412,-695.84,0.00038904,2]
[377230674,1754305897428,-400.0,0.00038904,2]
[377230675,1754305897444,-400.0,0.00038904,2]
[377230676,1754305897460,-437.7,0.00038904,2]
[377230677,1754305897475,-521.05933806,0.00038904,2]
[377230678,1754305897490,-1242.82,0.00038904,2]
[377230679,1754305897504,-724.66,0.00038904,2]
[377230680,1754305897521,-1119.1,0.00038904,2]
[377230681,1754305897536,-151.594813,0.00038904,14]
[377230682,1754305897550,-1165.58,0.00038904,2]
[377230683,1754305897565,-917.85,0.00038904,2]
[377230684,1754305897580,-2290.17,0.00038904,2]
[377230685,1754305897594,-400.0,0.00038904,2]
[377230686,1754305897609,-400.0,0.00038904,2]
[377230687,1754305897625,-1308.63,0.00038904,2]
[377230688,1754305897640,-801.64,0.00038904,2]
[377230689,1754305897669,-400.0,0.00038904,2]
[377230690,1754305897684,-22498.337891,0.00038904,2]
[377230691,1754305897700,-400.0,0.00038904,2]
[377230692,1754305897714,-906.75,0.00038904,2]
[377230693,1754305897733,-564.37,0.00038904,2]
[377230694,1754305897749,-918.46,0.00038904,2]
[377230695,1754305897764,-1397.01,0.00038904,2]
[377230696,1754305897778,-1040.59,0.00038904,2]
[377230697,1754305897793,-2104.64,0.00038904,2]
[377230698,1754305897808,-400.0,0.00038904,2]
[377230699,1754305897823,-1874.18,0.00038904,2]
[377230700,1754305897838,-1334.51,0.00038904,2]
[377230701,1754305897853,-400.0,0.00038904,2]
[377230702,1754305897868,-781.51,0.00038904,2]
[377230703,1754305897884,-19484.196749,0.00038904,2]
[377230704,1754305897900,-1353.35,0.00038904,2]
[377230705,1754305897916,-400.0,0.00038904,2]
[377230706,1754305897931,-1021.01,0.00038904,2]
[377230707,1754305897946,-1387.83,0.00038904,2]
[377230708,1754305897961,-400.0,0.00038904,2]
[377230709,1754305897975,-22956.210367,0.00038904,2]
[377230710,1754305897991,-400.0,0.00038904,2]
[377230711,1754305898005,-400.0,0.00038904,2]
[377230712,1754305898021,-341.79455996,0.00038904,2]
[377230713,1754305898036,-1025.08,0.00038904,2]
[377230714,1754305898051,-902.64,0.00038904,2]
[377230715,1754305898067,-400.0,0.00038904,2]
[377230716,1754305898081,-400.0,0.00038904,2]
[377230717,1754305898096,-627.8,0.00038904,2]
[377230718,1754305898111,-400.0,0.00038904,2]
[377230719,1754305898126,-400.0,0.00038904,2]
[377230720,1754305898142,-1868.95,0.00038904,2]
[377230721,1754305898157,-408.06316384,0.00038904,2]
[377230722,1754305898174,-1038.98,0.00038904,2]
[377230723,1754305898189,-1314.14,0.00038904,2]
[377230724,1754305898205,-468.7,0.00038904,2]
[377230725,1754305898220,-914.79,0.00038904,2]
[377230726,1754305898235,-402.82522503,0.00038904,2]
[377230727,1754305898251,-151.0,0.00038904,14]
[377230728,1754305898268,-925.88,0.00038904,2]
[377230729,1754305898282,-400.0,0.00038904,2]
[377230730,1754305898297,-1014.44,0.00038904,2]
[377230731,1754305898311,-935.88,0.00038904,2]
[377230732,1754305898326,-400.0,0.00038904,2]
[377230733,1754305898347,-945.59982,0.00038904,2]
[377230734,1754305898361,-418.98367045,0.00038904,2]
[377230735,1754305898376,-590.39,0.00038904,2]
[377230736,1754305898392,-1614.1,0.00038904,2]
[377230737,1754305898406,-1412.5,0.00038904,2]
[377230738,1754305898422,-400.0,0.00038904,2]
[377230739,1754305898438,-710.0,0.00038904,2]
[377230740,1754305898453,-608.78,0.00038904,2]
[377230741,1754305898469,-400.0,0.00038904,2]
[377230742,1754305898482,-400.0,0.00038904,2]
[377230743,1754305898498,-695.98,0.00038904,2]
[377230744,1754305898512,-400.0,0.00038904,2]
[377230745,1754305898527,-400.0,0.00038904,2]
[377230746,1754305898542,-1252.59,0.00038904,2]
[377230747,1754305898557,-400.0,0.00038904,2]
[377230748,1754305898572,-856.19,0.00038904,2]
[377230749,1754305898588,-1142.6,0.00038904,2]
[377230750,1754305898603,-400.0,0.00038904,2]
[377230751,1754305898618,-810.9,0.00038904,2]
[377230752,1754305898634,-400.0,0.00038904,2]
[377230753,1754305898649,-400.0,0.00038904,2]
[377230754,1754305898664,-400.0,0.00038904,2]
[377230755,1754305898679,-400.0,0.00038904,2]
[377230756,1754305898694,-793.48,0.00038904,2]
[377230757,1754305898709,-400.0,0.00038904,2]
[377230758,1754305898723,-1752.3,0.00038904,2]
[377230759,1754305898738,-305.13911123,0.00038904,2]
[377230760,1754305898752,-1639.2,0.00038904,2]
[377230761,1754305898767,-1057.57,0.00038904,2]
[377230762,1754305898782,-1899.23,0.00038904,2]
[377230763,1754305898796,-400.0,0.00038904,2]
[377230764,1754305898811,-1894.1,0.00038904,2]
[377230765,1754305898825,-400.0,0.00038904,2]
[377230766,1754305898842,-400.0,0.00038904,2]
[377230767,1754305898857,-400.0,0.00038904,2]
[377230768,1754305898872,-400.0,0.00038904,2]
[377230769,1754305898887,-400.0,0.00038904,2]
[377230770,1754305898903,-400.0,0.00038904,2]
[377230771,1754305898918,-400.0,0.00038904,2]
[377230772,1754305898932,-1066.82,0.00038904,2]
[377230773,1754305898947,-400.0,0.00038904,2]
[377230774,1754305898963,-1189.48,0.00038904,2]
[377230775,1754305898980,-1326.33,0.00038904,2]
[377230776,1754305898997,-405.69,0.00038904,2]
[377230777,1754305899013,-1704.15,0.00038904,2]
[377230778,1754305899028,-1046.61,0.00038904,2]
[377230779,1754305899043,-400.0,0.00038904,2]
[377230780,1754305899058,-833.04,0.00038904,2]
[377230781,1754305899074,-400.0,0.00038904,2]
[377230782,1754305899089,-684.99,0.00038904,2]
[377230783,1754305899103,-596.8,0.00038904,2]
[377230784,1754305899118,-400.0,0.00038904,2]
[377230785,1754305899463,-401.20282708,0.00038904,2]
[377230786,1754305899491,-400.0,0.00038904,2]
[377230787,1754305899501,-925.69,0.00038904,2]
[377230788,1754305899511,-1612.63,0.00038904,2]
[377230789,1754305899521,-482.48,0.00038904,2]
[377230790,1754305899530,-400.0,0.00038904,2]
[377230791,1754305899540,-401.78079933,0.00038904,2]
[377230792,1754305899550,-1463.3,0.00038904,2]
[377230793,1754305899559,-1295.25,0.00038904,2]
[377230794,1754305899569,-400.0,0.00038904,2]
[377230795,1754305899579,-400.0,0.00038904,2]
[377230796,1754305899588,-2145.64,0.00038904,2]
[377230797,1754305899598,-400.0,0.00038904,2]
[377230798,1754305899608,-1283.66,0.00038904,2]
[377230799,1754305899618,-400.0,0.00038904,2]
[377230800,1754305899627,-758.52,0.00038904,2]
[377230801,1754305899638,-400.0,0.00038904,2]
[377230802,1754305899647,-7192.74,0.00038904,2]
[377230803,1754305899656,-721.69,0.00038904,2]
[377230804,1754305899665,-400.0,0.00038904,2]
[377230805,1754305899674,-400.0,0.00038904,2]
[377230806,1754305899683,-400.0,0.00038904,2]
[377230807,1754305899693,-988.46,0.00038904,2]
[377230808,1754305899702,-896.0,0.00038904,2]
[377230809,1754305899711,-453.42,0.00038904,2]
[377230810,1754305899720,-627.97,0.00038904,2]
[377230811,1754305899730,-766.66,0.00038904,2]
[377230812,1754305899738,-400.0,0.00038904,2]
[377230813,1754305899746,-400.0,0.00038904,2]
[377230814,1754305899754,-400.0,0.00038904,2]
[377230815,1754305899764,-1762.88,0.00038904,2]
[377230816,1754305899773,-1472.33,0.00038904,2]
[377230817,1754305899784,-400.0,0.00038904,2]
[377230818,1754305899793,-400.0,0.00038904,2]
[377230819,1754305899802,-400.0,0.00038904,2]
[377230820,1754305899812,-400.0,0.00038904,2]
[377230821,1754305899821,-1303.02,0.00038904,2]
[377230822,1754305899831,-400.0,0.00038904,2]
[377230823,1754305899841,-400.0,0.00038904,2]
[377230824,1754305899850,-796.7,0.00038904,2]
[377230825,1754305899860,-986.33,0.00038904,2]
[377230826,1754305899870,-1414.12,0.00038904,2]
[377230827,1754305899879,-700.57,0.00038904,2]
[377230828,1754305899889,-400.0,0.00038904,2]
[377230829,1754305899903,-400.0,0.00038904,2]
[377230830,1754305899915,-553.07,0.00038904,2]
[377230831,1754305899925,-400.0,0.00038904,2]
[377230832,1754305899934,-410.01280811,0.00038904,2]
[377230833,1754305899943,-658.58,0.00038904,2]
[377230834,1754305899954,-151.0,0.00038904,14]
[377230835,1754305899963,-1321.92,0.00038904,2]
[377230836,1754305899973,-400.0,0.00038904,2]
[377230837,1754305899982,-400.0,0.00038904,2]
[377230838,1754305899992,-400.0,0.00038904,2]
[377230839,1754305900002,-151.0,0.00038904,14]
[377230840,1754305900012,-499.21,0.00038904,2]
[377230841,1754305900022,-1836.51,0.00038904,2]
[377230842,1754305900032,-1050.51,0.00038904,2]
[377230843,1754305900041,-682.1,0.00038904,2]
[377230844,1754305900051,-739.68,0.00038904,2]
[377230845,1754305900060,-448.70524901,0.00038904,2]
[377230846,1754305900070,-1274.01,0.00038904,2]
[377230847,1754305900079,-400.0,0.00038904,2]
[377230848,1754305900089,-400.0,0.00038904,2]
[377230849,1754305900099,-651.05,0.00038904,2]
[377230850,1754305900109,-1303.02,0.00038904,2]
[377230851,1754305900118,-345.94122563,0.00038904,2]
[377230852,1754305900128,-400.0,0.00038904,2]
[377230853,1754305900137,-596.36,0.00038904,2]
[377230854,1754305900146,-403.87005679,0.00038904,2]
[377230855,1754305900156,-822.07,0.00038904,2]
[377230856,1754305900166,-999.83,0.00038904,2]
[377230857,1754305900175,-1091.32,0.00038904,2]
[377230858,1754305900185,-400.0,0.00038904,2]
[377230859,1754305900194,-558.09,0.00038904,2]
[377230860,1754305900203,-400.0,0.00038904,2]
[377230861,1754305900214,-562.8,0.00038904,2]
[377230862,1754305900223,-286.183478,0.00038904,14]
[377230863,1754305900233,-1242.64,0.00038904,2]
[377230864,1754305900243,-400.0,0.00038904,2]
[377230865,1754305900252,-793.84,0.00038904,2]
[377230866,1754305900262,-1330.82,0.00038904,2]
[377230867,1754305900272,-400.0,0.00038904,2]
[377230868,1754305900281,-2488.352271,0.00038904,14]
[377230869,1754305900290,-1446.54,0.00038904,2]
[377230870,1754305900300,-400.86101099,0.00038904,2]
[377230871,1754305900309,-286.183478,0.00038904,14]
[377230872,1754305900319,-1346.03,0.00038904,2]
[377230873,1754305900328,-303.32363798,0.00038904,2]
[377230874,1754305900338,-1481.75,0.00038904,2]
[377230875,1754305900348,-879.7,0.00038904,2]
[377230876,1754305900358,-400.0,0.00038904,2]
[377230877,1754305900367,-1081.44,0.00038904,2]
[377230878,1754305900377,-400.0,0.00038904,2]
[377230879,1754305900386,-400.0,0.00038904,2]
[377230880,1754305900396,-2488.352271,0.00038904,14]
[377230881,1754305900405,-167.92889345,0.00038904,2]
[377230882,1754305900415,-2294.74,0.00038904,2]
[377230883,1754305900425,-528.1,0.00038904,2]
[377230884,1754305900434,-400.0,0.00038904,2]
[377230885,1754305900444,-768.31,0.00038904,2]
[377230886,1754305900454,-400.0,0.00038904,2]
[377230887,1754305900463,-2185.11,0.00038904,2]
[377230888,1754305900473,-400.0,0.00038904,2]
[377230889,1754305900482,-764.62,0.00038904,2]
[377230890,1754305900492,-400.0,0.00038904,2]
[377230891,1754305900502,-405.7,0.00038904,2]
[377230892,1754305900511,-2154.11,0.00038904,2]
[377230893,1754305900521,-400.0,0.00038904,2]
[377230894,1754305900530,-400.0,0.00038904,2]
[377230895,1754305900540,-670.62,0.00038904,2]
[377230896,1754305900549,-1687.51,0.00038904,2]
[377230897,1754305900558,-400.0,0.00038904,2]
[377230898,1754305900567,-1797.87,0.00038904,2]
[377230899,1754305900577,-884.68,0.00038904,2]
[377230900,1754305900586,-400.0,0.00038904,2]
[377230901,1754305900596,-252.25554,0.00038904,14]
[377230902,1754305900606,-466.07,0.00038904,2]
[377230903,1754305900615,-400.0,0.00038904,2]
[377230904,1754305900625,-1427.05,0.00038904,2]
[377230905,1754305900635,-659.47,0.00038904,2]
[377230906,1754305900645,-1547.49,0.00038904,2]
[377230907,1754305900654,-430.38,0.00038904,2]
[377230908,1754305900663,-307.25393936,0.00038904,2]
[377230909,1754305900673,-400.0,0.00038904,2]
[377230910,1754305900682,-252.25554,0.00038904,14]
[377230911,1754305900692,-948.07,0.00038904,2]
[377230912,1754305900701,-400.0,0.00038904,2]
[377230913,1754305900710,-470.40544991,0.00038904,2]
[377230914,1754305900720,-1424.69,0.00038904,2]
[377230915,1754305900729,-1692.45,0.00038904,2]
[377230916,1754305900739,-401.23367913,0.00038904,2]
[377230917,1754305900748,-400.0,0.00038904,2]
[377230918,1754305900758,-151.0,0.00038904,14]
[377230919,1754305900767,-1068.48,0.00038904,2]
[377230920,1754305900777,-870.74,0.00038904,2]
[377230921,1754305900786,-224.64570809,0.00038904,2]
[377230922,1754305900795,-1702.7,0.00038904,2]
[377230923,1754305900804,-469.7,0.00038904,2]
[377230924,1754305900814,-1630.8,0.00038904,2]
[377230925,1754305900823,-400.0,0.00038904,2]